bitfinex/quotes_ETHUSD_20240621
["timestamp","ask_amount","ask_price","bid_price","bid_amount"]
[1718934669968,0.868,3532.7,3531.7,0.868]
[1718934669969,0.75943895,3532.4,3531.7,0.868]
[1718934670171,0.7578129,3532.3,3531.7,1.9295658]
[1718934670388,2.2991,3532.5,3531.7,1.0615658]
[1718934670590,0.096119,3532.4,3531.7,1.0615658]
[1718934670798,2.2991,3532.5,3531.7,1.0335658]
[1718934671102,0.096119,3532.4,3531.7,1.0335658]
[1718934671508,2.2991,3532.5,3531.7,1.0335658]
[1718934671866,0.868,3532.8,3531.8,1.35815658]
[1718934672269,0.096119,3532.7,3531.8,1.35815658]
[1718934673093,0.096119,3532.7,3531.8,1.21615658]
[1718934674030,2.2991,3532.9,3531.9,0.55]
[1718934674210,0.09612621,3532.8,3531.9,0.55]
[1718934674450,0.09612621,3532.8,3532.2,0.868]
[1718934675014,3.1671,3533.3,3532.2,0.868]
[1718934675015,0.09618025,3532.7,3532.2,0.868]
[1718934675234,0.868,3533.1,3532.2,0.868]
[1718934675412,0.09618025,3532.6,3532.2,0.868]
[1718934675628,0.868,3533.1,3532.2,0.868]
[1718934676915,0.868,3533.1,3532.1,3.0]
[1718934677104,0.868,3532.9,3532.1,3.0]
[1718934677415,2.2991,3532.6,3532.1,3.0]
[1718934677788,2.2991,3532.6,3532.0,6.20461913]
[1718934678488,2.2991,3532.6,3532.0,6.15461913]
[1718934679096,0.868,3532.5,3532.1,3.0]
[1718934679301,0.31671,3532.4,3532.1,3.0]
[1718934679498,0.31671,3532.4,3531.6,3.0]
[1718934679698,0.868,3532.2,3531.6,3.0]
[1718934680101,2.2991,3532.3,3531.3,6.15461913]
[1718934680102,0.868,3532.0,3531.4,3.0]
[1718934680418,1.18471,3532.0,3531.4,3.0]
[1718934681317,0.31671,3532.0,3531.4,3.0]
[1718934682193,1.18471,3532.0,3531.4,3.0]
[1718934682790,0.868,3531.6,3531.4,3.0]
[1718934683122,0.868,3531.6,3530.9,6.15461913]
[1718934683123,0.09567955,3531.5,3531.0,3.0]
[1718934683489,0.868,3531.6,3531.0,3.0]
[1718934685641,2.2991,3531.9,3531.0,3.0]
[1718934685798,0.261581,3531.8,3531.0,3.0]
[1718934686508,2.2991,3531.7,3531.0,3.0]
[1718934686922,2.2991,3531.7,3530.6,12.28]
[1718934686923,2.2991,3531.7,3530.8,3.0]
[1718934687299,2.2991,3531.7,3530.6,3.0]
[1718934687506,0.09518226,3531.6,3530.6,3.0]
[1718934687739,2.2991,3531.7,3530.6,3.0]
[1718934688047,0.43831,3531.6,3530.6,3.0]
[1718934689128,2.2991,3531.5,3530.6,3.0]
[1718934689728,2.2991,3531.5,3531.1,0.295]
[1718934690119,0.85170019,3531.4,3531.1,0.295]
[1718934690325,0.75660444,3531.3,3531.1,0.295]
[1718934690662,0.09506692,3531.2,3531.1,0.295]
[1718934690961,1.21580823,3531.2,3531.1,0.295]
[1718934691125,1.12074131,3531.2,3531.1,0.295]
[1718934691330,1.21580823,3531.2,3531.1,0.295]
[1718934693661,3.51490823,3531.2,3531.1,0.295]
[1718934693863,3.15077136,3531.2,3531.1,0.295]
[1718934694011,3.64137233,3531.2,3531.1,0.295]
[1718934696775,3.15077136,3531.2,3531.1,0.295]
[1718934696972,3.64141829,3531.2,3531.1,0.295]
[1718934697191,4.21396012,3531.2,3531.1,0.295]
[1718934699906,4.21394447,3531.2,3531.1,0.295]
[1718934700270,3.72331319,3531.2,3531.1,0.295]
[1718934700465,4.21394373,3531.2,3531.1,0.295]
[1718934701203,4.21394446,3531.2,3531.1,0.295]
[1718934702991,4.21394758,3531.2,3531.1,0.295]
[1718934706129,4.21398746,3531.2,3531.1,0.295]
[1718934708510,6.27474815,3531.2,3531.1,0.295]
[1718934709166,3.72331319,3531.2,3531.1,0.295]
[1718934709367,6.27473665,3531.2,3531.1,0.295]
[1718934709820,7.14373665,3531.2,3531.1,0.295]
[1718934710994,2.2991,3531.1,3529.8,4.135291]
[1718934711170,0.869,3530.1,3529.8,3.0]
[1718934711567,0.869,3530.1,3529.6,1.135376]
[1718934711805,0.09449726,3530.0,3529.6,1.135376]
[1718934714273,0.09449726,3530.0,3529.6,1.5952436]
[1718934714803,0.869,3530.4,3529.6,1.5952436]
[1718934715187,0.09433497,3530.3,3529.6,1.5952436]
[1718934716004,3.1681,3530.2,3529.6,1.5952436]
[1718934716193,0.49070036,3530.1,3529.6,1.5952436]
[1718934716398,0.58504616,3530.1,3529.6,1.135376]
[1718934718501,0.0943458,3530.1,3529.6,1.135376]
[1718934718678,0.58505429,3530.1,3529.6,1.135376]
[1718934719273,0.869,3530.0,3529.6,1.135376]
[1718934719487,0.869,3529.8,3529.3,3.0]
[1718934719688,0.869,3529.8,3529.4,1.135431]
[1718934721810,0.49074486,3530.1,3529.4,1.135431]
[1718934722018,0.49074486,3530.1,3529.5,0.7583]
[1718934722221,2.0609765,3530.0,3529.5,1.86313501]
[1718934722520,0.09403559,3529.9,3529.5,4.86313501]
[1718934722887,0.869,3530.2,3529.5,4.86313501]
[1718934723091,2.06095589,3530.1,3529.5,4.86313501]
[1718934723303,0.869,3530.0,3529.5,3.7583]
[1718934723523,1.45378045,3530.0,3529.6,3.0]
[1718934723690,0.96303559,3530.0,3529.5,0.7583]
[1718934724112,0.869,3530.0,3529.5,0.7583]
[1718934724322,2.06093671,3529.9,3529.5,0.7583]
[1718934724529,2.55168157,3529.9,3529.5,0.7583]
[1718934724685,0.869,3530.0,3529.4,1.135431]
[1718934724686,0.58473482,3529.8,3529.4,1.135431]
[1718934724892,0.09403559,3529.8,3529.4,1.135431]
[1718934725229,0.869,3530.2,3529.4,1.135431]
[1718934725450,2.83196755,3530.1,3529.5,0.7583]
[1718934725737,2.55163576,3530.0,3529.5,3.7583]
[1718934725952,0.49069923,3530.4,3529.5,3.7583]
[1718934726102,2.83181073,3530.3,3529.6,0.6867566]
[1718934726307,3.32250996,3530.2,3529.6,0.6867566]
[1718934726508,3.32250996,3530.1,3529.6,0.6867566]
[1718934726705,3.32250996,3530.0,3529.6,0.6867566]
[1718934726909,2.55145414,3529.9,3529.6,0.6867566]
[1718934727128,0.09415101,3529.9,3529.6,0.6867566]
[1718934727306,0.09415101,3529.9,3529.7,0.66853226]
[1718934727620,0.869,3530.4,3529.7,0.66853226]
[1718934727804,0.86560666,3530.3,3529.7,0.66853226]
[1718934728003,2.83212637,3530.2,3529.7,0.66853226]
[1718934728202,3.32278974,3530.1,3529.8,0.7583]
[1718934728479,4.75473455,3531.5,3530.2,0.7583]
[1718934728593,3.32222676,3531.4,3530.5,0.869]
[1718934728797,3.32222676,3531.3,3530.2,6.91291913]
[1718934729095,3.32222676,3531.2,3530.4,0.869]
[1718934729292,3.32222676,3531.1,3530.5,1.13319191]
[1718934729517,3.32222676,3531.0,3530.5,1.13319191]
[1718934729771,2.83165283,3530.9,3530.5,1.13319191]
[1718934729939,2.83165283,3530.8,3530.5,1.13319191]
[1718934730147,2.83165283,3530.8,3530.4,0.869]
[1718934730148,2.83165283,3530.7,3530.4,0.869]
[1718934730447,0.77124856,3530.6,3530.4,0.869]
[1718934730627,0.77124856,3530.5,3530.4,0.869]
[1718934730825,0.77124856,3530.5,3530.4,1.419]
[1718934731337,0.77124856,3531.3,3530.4,1.419]
[1718934731522,2.831512,3531.2,3530.4,1.419]
[1718934731708,3.32205303,3531.1,3530.4,1.63673]
[1718934731888,3.32205303,3531.0,3530.4,1.63673]
[1718934732086,2.831512,3530.9,3530.4,1.63673]
[1718934732358,2.831512,3530.8,3530.4,1.63673]
[1718934732559,2.831512,3530.7,3530.4,1.63673]
[1718934732714,0.77124856,3530.6,3530.4,1.63673]
[1718934732912,0.77124856,3530.5,3530.4,1.419]
[1718934733109,0.77124856,3531.3,3530.4,1.419]
[1718934733331,2.83232939,3531.2,3530.5,0.21773]
[1718934733628,3.32287183,3531.1,3530.4,1.419]
[1718934733830,0.77205694,3531.0,3530.4,1.419]
[1718934734058,2.83233434,3530.9,3530.4,1.419]
[1718934734264,0.77205694,3530.8,3530.4,1.419]
[1718934734425,2.8323337,3530.7,3530.4,1.63673]
[1718934734775,0.77205694,3530.6,3530.2,0.7583]
[1718934734972,0.77205694,3530.5,3530.2,0.7583]
[1718934735172,0.77205694,3530.5,3530.0,3.869]
[1718934735173,2.83253855,3530.4,3530.0,3.0]
[1718934735390,2.83261427,3530.3,3530.0,3.0]
[1718934735532,2.83268376,3530.2,3530.0,3.0]
[1718934735849,0.77205694,3530.1,3530.0,3.0]
[1718934736363,0.77205694,3530.7,3530.0,3.0]
[1718934736536,2.99677714,3530.6,3530.0,3.0]
[1718934736735,0.77205694,3530.5,3530.0,3.0]
[1718934736940,2.83270794,3530.4,3530.0,3.0]
[1718934737139,0.869,3530.8,3530.0,3.0]
[1718934737140,2.83270794,3530.3,3530.0,3.0]
[1718934737349,2.83270794,3530.2,3530.0,3.0]
[1718934737554,2.83270794,3530.1,3530.0,3.0]
[1718934740036,2.83284021,3530.1,3530.0,3.0]
[1718934740637,2.83284021,3530.1,3529.5,3.7583]
[1718934740865,2.83284021,3530.0,3529.5,3.7583]
[1718934741171,2.83284021,3529.9,3529.5,3.7583]
[1718934741367,0.77205694,3529.8,3529.5,3.7583]
[1718934741567,0.869,3530.4,3529.5,3.7583]
[1718934741774,2.83328735,3530.3,3529.5,1.6273]
[1718934741975,2.83328735,3530.2,3529.5,4.6273]
[1718934742174,2.83328735,3530.1,3529.5,4.6273]
[1718934742475,2.92783509,3530.0,3529.5,4.6273]
[1718934742680,2.83328735,3529.9,3529.5,4.6273]
[1718934742843,0.77244649,3529.8,3529.7,0.869]
[1718934743044,2.2991,3530.6,3529.7,0.869]
[1718934743371,2.92752074,3530.5,3529.7,0.869]
[1718934743572,2.83300185,3530.4,3529.9,0.869]
[1718934743747,2.83300185,3530.3,3530.1,0.869]
[1718934743953,0.7723748,3530.2,3530.1,0.869]
[1718934745457,0.7723748,3530.2,3529.7,3.7583]
[1718934745654,0.7723748,3530.2,3529.6,1.22400851]
[1718934745655,0.7723748,3530.1,3529.9,0.7583]
[1718934745857,0.49057833,3531.3,3530.1,0.7583]
[1718934746061,4.75619717,3531.7,3530.0,0.55]
[1718934746062,0.40921882,3531.2,3530.3,0.7583]
[1718934746285,2.37473295,3531.1,3530.4,0.33923]
[1718934746478,2.2991,3531.7,3530.4,0.33923]
[1718934746479,0.314617,3531.0,3530.5,0.55]
[1718934746661,0.314617,3530.9,3530.5,1.223153]
[1718934746861,0.4904787,3531.6,3530.5,1.223153]
[1718934747085,2.46859388,3531.5,3530.5,1.223153]
[1718934747285,2.37399206,3531.4,3530.6,0.7583]
[1718934747470,2.37399206,3531.3,3530.7,0.7820683]
[1718934747684,0.31400062,3531.2,3530.7,0.7820683]
[1718934747873,0.31400062,3531.1,3530.7,0.55]
[1718934748073,0.49048424,3532.0,3530.7,0.55]
[1718934748274,2.4695265,3531.9,3530.7,0.55]
[1718934748477,2.86516379,3531.8,3530.7,0.55]
[1718934748682,2.86516379,3531.7,3530.7,0.55]
[1718934748968,2.4695265,3531.6,3530.6,0.7583]
[1718934749184,3.11233457,3531.5,3530.6,0.7583]
[1718934749399,2.86538192,3531.4,3530.6,0.7583]
[1718934749574,2.37485983,3531.3,3530.6,0.7583]
[1718934749783,2.37485983,3531.2,3530.6,0.7583]
[1718934749959,2.54605265,3531.5,3530.6,0.7583]
[1718934749960,2.37485983,3531.1,3530.6,0.7583]
[1718934750160,2.2991,3530.9,3530.4,6.15461913]
[1718934750397,2.37492621,3530.8,3530.4,6.15461913]
[1718934750594,2.2991,3530.9,3530.4,6.15461913]
[1718934750595,2.37492621,3530.7,3530.4,6.15461913]
[1718934750891,2.37492621,3530.6,3530.4,6.15461913]
[1718934751065,2.37492621,3530.5,3530.4,6.15461913]
[1718934751260,2.47011567,3530.5,3529.8,6.15461913]
[1718934751472,2.37492621,3530.4,3529.9,3.0]
[1718934751665,2.86559737,3530.3,3529.9,3.0]
[1718934751875,2.37492621,3530.2,3529.9,3.0]
[1718934752095,2.37552509,3530.1,3529.9,3.0]
[1718934752282,0.31466703,3530.0,3529.8,6.15461913]
[1718934752682,2.37554942,3529.9,3529.8,6.15461913]
[1718934753912,2.37554942,3529.9,3529.8,9.15461913]
[1718934754582,2.61310436,3529.9,3529.8,3.0]
[1718934754772,2.61310436,3529.9,3529.6,3.0]
[1718934754973,2.86626427,3529.8,3529.6,3.0]
[1718934755177,2.86655109,3529.7,3529.4,1.135431]
[1718934755504,2.37580416,3529.6,3529.4,1.135431]
[1718934755675,2.37580416,3529.5,3529.4,1.135431]
[1718934756076,0.31466703,3529.5,3529.4,1.135431]
[1718934756279,2.084,3530.9,3529.4,2.16443601]
[1718934756280,0.31466703,3529.8,3529.4,2.16443601]
[1718934756474,0.31374292,3529.7,3529.4,1.135431]
[1718934756662,0.31374292,3529.6,3529.4,1.135431]
[1718934756996,0.49072494,3530.4,3529.4,1.135431]
[1718934757186,2.65376889,3530.3,3529.4,1.135431]
[1718934757374,2.86551134,3530.2,3529.4,1.135431]
[1718934757696,2.86551134,3530.1,3529.4,1.135431]
[1718934757993,0.80448831,3530.0,3529.4,1.135431]
[1718934758194,2.3748505,3529.9,3529.4,1.135431]
[1718934758400,2.3748505,3529.8,3529.4,1.135431]
[1718934758571,2.3748505,3529.7,3529.4,1.135431]
[1718934758772,2.3748505,3529.6,3529.4,1.135431]
[1718934758996,0.29597149,3529.9,3529.4,1.135431]
[1718934759299,2.37496682,3529.8,3529.4,1.135431]
[1718934759512,2.37496682,3529.7,3529.4,1.135431]
[1718934759679,2.37496682,3529.6,3529.4,1.135431]
[1718934759930,0.3139071,3529.5,3529.4,1.135431]
[1718934760082,0.3139071,3529.5,3529.2,3.0]
[1718934760413,0.22991,3529.7,3529.2,4.13546]
[1718934760607,2.37504792,3529.6,3529.2,4.13546]
[1718934760814,2.37507961,3529.5,3529.2,4.13546]
[1718934761116,0.22991,3529.7,3529.2,4.13546]
[1718934761278,2.37508006,3529.6,3529.2,4.13546]
[1718934761497,2.37508006,3529.5,3529.2,4.13546]
[1718934761813,0.22991,3529.7,3529.2,4.13546]
[1718934761971,2.37496874,3529.6,3529.2,4.13546]
[1718934762171,2.2991,3530.2,3529.2,4.13546]
[1718934762411,2.86553399,3530.1,3529.2,4.13546]
[1718934762598,2.37482286,3530.0,3529.2,4.13546]
[1718934762803,2.37482286,3529.9,3529.4,0.7583]
[1718934763011,2.2991,3530.9,3529.5,0.55]
[1718934763173,2.86505383,3530.8,3529.5,6.70461913]
[1718934763369,3.38146921,3530.7,3529.6,3.0]
[1718934763569,2.86505383,3530.6,3529.6,3.0]
[1718934763795,2.86505383,3530.5,3529.6,3.0]
[1718934763984,2.37439925,3530.4,3529.6,3.0]
[1718934764201,0.31365001,3530.3,3529.6,3.0]
[1718934764507,2.37438998,3530.2,3529.6,3.0]
[1718934764711,0.31365001,3530.1,3529.6,3.0]
[1718934765008,0.4906487,3530.8,3529.6,3.0]
[1718934765220,2.37492027,3530.7,3529.6,0.57794387]
[1718934765386,2.86556897,3530.6,3529.6,3.57794387]
[1718934765706,2.8655737,3530.5,3529.6,3.57794387]
[1718934765900,2.37492027,3530.4,3529.6,3.57794387]
[1718934766085,2.37492027,3530.3,3529.6,3.57794387]
[1718934766279,2.37492062,3530.2,3529.6,3.57794387]
[1718934766479,0.27897487,3530.8,3529.6,3.57794387]
[1718934766480,0.31425643,3530.1,3529.7,0.63573826]
[1718934766681,0.76962572,3530.8,3529.7,0.63573826]
[1718934766880,2.46901442,3530.7,3529.6,3.0]
[1718934767109,2.86564051,3530.6,3529.5,5.0211387]
[1718934767311,2.86563461,3530.5,3529.5,5.0211387]
[1718934767613,0.27897487,3530.8,3529.6,0.57794387]
[1718934767614,2.37498966,3530.4,3529.6,0.57794387]
[1718934767814,2.37498966,3530.3,3529.6,3.57794387]
[1718934767986,0.31425691,3530.2,3529.7,0.93573826]
[1718934768317,0.76961287,3530.8,3529.7,0.93573826]
[1718934768517,2.37487244,3530.7,3529.8,0.55]
[1718934768808,2.37487244,3530.7,3529.9,0.44857383]
[1718934768809,2.86551044,3530.6,3529.9,0.44857383]
[1718934769013,2.37487244,3530.5,3530.0,0.55]
[1718934769232,2.37487244,3530.4,3530.0,0.55]
[1718934769432,2.37487244,3530.3,3530.0,0.55]
[1718934769579,0.09429169,3530.4,3530.0,0.55]
[1718934769782,2.37490641,3530.3,3530.0,0.55]
[1718934770097,0.09429169,3530.3,3530.0,0.55]
[1718934770306,0.4906327,3530.8,3530.0,0.55]
[1718934770514,0.09433136,3530.2,3530.0,0.55]
[1718934770721,0.4906327,3530.6,3530.0,0.55]
[1718934770895,0.09433136,3530.1,3530.0,0.55]
[1718934771423,0.49063272,3530.8,3530.0,0.55]
[1718934771637,2.3749762,3530.7,3529.5,4.4711387]
[1718934771845,2.86560892,3530.6,3529.6,0.55]
[1718934772125,2.64564611,3530.5,3529.7,0.7583]
[1718934772327,0.49057975,3531.3,3530.1,0.7583]
[1718934772544,2.37427338,3531.2,3530.2,0.83423]
[1718934772722,2.2991,3531.7,3530.2,0.83423]
[1718934772723,0.31396856,3531.1,3530.2,0.83423]
[1718934772890,0.4905064,3531.6,3530.2,0.83423]
[1718934773090,0.4905064,3531.6,3530.3,1.28311491]
[1718934773091,2.37403535,3531.5,3530.3,1.28311491]
[1718934773401,0.40826981,3531.4,3530.3,1.28311491]
[1718934773625,2.37406445,3531.3,3530.3,1.28311491]
[1718934773803,2.37406445,3531.2,3530.4,0.58756449]
[1718934774005,2.37406445,3531.2,3530.5,1.3083]
[1718934774006,0.09435659,3531.2,3530.5,1.3083]
[1718934774207,0.09435659,3531.2,3530.6,0.82629794]
[1718934774410,0.49047516,3532.0,3530.7,0.55]
[1718934774620,2.37462236,3531.9,3530.7,0.55]
[1718934774967,2.86509752,3531.8,3530.7,0.55]
[1718934775237,2.2991,3532.6,3530.9,0.7583]
[1718934775519,0.80509692,3532.5,3531.1,6.15461913]
[1718934775706,0.31471482,3532.4,3531.2,3.55]
[1718934775909,0.31471482,3532.4,3531.3,1.02546191]
[1718934776092,0.31471482,3532.3,3531.4,0.55]
[1718934776293,0.31536505,3532.2,3531.4,0.55]
[1718934776520,0.31536505,3532.2,3531.2,3.0]
[1718934776521,0.49037799,3532.5,3531.2,3.0]
[1718934776696,2.2991,3532.0,3531.2,3.0]
[1718934776902,0.31535239,3531.9,3531.2,3.0]
[1718934777136,0.8058321,3531.9,3531.2,3.0]
[1718934777418,0.41059952,3531.8,3531.2,3.0]
[1718934777626,0.31535239,3531.7,3531.2,3.0]
[1718934777832,0.63537031,3531.7,3531.2,3.0]
[1718934777987,0.31535239,3531.6,3531.2,3.0]
[1718934778188,0.41059952,3531.6,3530.7,3.0]
[1718934778498,0.31535239,3531.5,3530.7,3.0]
[1718934778709,0.31512,3531.4,3530.7,3.0]
[1718934779020,0.32001792,3531.7,3530.7,3.0]
[1718934779189,0.31511517,3531.6,3530.7,3.0]
[1718934780587,2.2991,3531.5,3530.7,3.0]
[1718934780823,1.09907993,3531.4,3530.7,3.0]
[1718934781025,0.29342331,3531.4,3530.7,3.0]
[1718934781232,0.09508133,3531.3,3530.7,3.0]
[1718934782418,0.09508133,3531.3,3530.8,0.7583]
[1718934782843,0.4905116,3532.0,3530.8,0.7583]
[1718934783003,0.31456002,3531.9,3530.9,1.54129191]
[1718934783207,0.09496959,3531.9,3530.9,1.54129191]
[1718934783425,0.4905116,3532.5,3530.9,4.54129191]
[1718934783598,0.09496959,3531.8,3530.9,4.54129191]
[1718934783801,0.4905116,3532.5,3531.0,0.73835919]
[1718934783996,0.09505969,3531.7,3531.1,0.55]
[1718934784300,0.4905116,3532.5,3531.1,0.55]
[1718934784505,0.40969632,3532.4,3531.2,0.82796511]
[1718934784722,0.31438074,3532.3,3531.2,0.82796511]
[1718934785219,0.40969632,3532.2,3531.2,0.82796511]
[1718934785419,0.09531558,3532.2,3531.2,0.82796511]
[1718934785625,0.09531558,3532.2,3531.3,0.7583]
[1718934785850,0.76938308,3532.5,3531.4,0.87709801]
[1718934786161,0.09547418,3532.1,3531.4,0.87709801]
[1718934786329,0.76938308,3532.5,3531.4,0.87709801]
[1718934786531,0.09547418,3532.0,3531.4,0.87709801]
[1718934786719,0.76938308,3532.5,3531.4,0.87709801]
[1718934786922,0.62204739,3532.4,3531.4,0.87709801]
[1718934787255,0.49042192,3532.5,3531.4,0.87709801]
[1718934787549,2.2991,3532.6,3531.4,0.87709801]
[1718934787757,0.09551021,3532.4,3531.4,0.87709801]
[1718934787939,2.2991,3532.6,3531.4,0.87709801]
[1718934788250,0.80566733,3532.5,3531.4,0.87709801]
[1718934788431,0.49040488,3532.5,3531.4,0.87709801]
[1718934788629,0.09551021,3532.4,3531.5,0.65980781]
[1718934788832,0.49040488,3532.5,3531.5,0.65980781]
[1718934790340,2.084,3533.1,3531.5,0.65980781]
[1718934790341,2.2991,3532.9,3531.5,0.65980781]
[1718934790542,0.09551021,3532.4,3531.7,0.7583]
[1718934790744,0.49038198,3533.5,3532.0,2.084]
[1718934790944,0.09552821,3532.3,3532.1,6.15461913]
[1718934791168,0.30903023,3533.5,3532.2,3.89969191]
[1718934791333,0.49027718,3533.5,3532.2,3.89969191]
[1718934791536,2.2991,3533.6,3532.3,3.0]
[1718934791736,0.31497636,3533.5,3532.2,0.89969191]
[1718934791956,0.80525926,3533.5,3532.2,7.05431104]
[1718934792161,0.576384,3533.4,3532.3,3.0]
[1718934792364,0.26140764,3533.4,3532.3,3.0]
[1718934792846,0.49028999,3533.5,3532.3,3.0]
[1718934794364,0.49028956,3533.5,3532.3,3.0]
[1718934797241,0.49028956,3533.5,3531.9,0.7583]
[1718934797437,2.2991,3533.6,3532.0,0.55]
[1718934797670,0.49029164,3533.5,3532.0,0.55]
[1718934797976,0.7697308,3533.5,3532.1,0.17135108]
[1718934800495,0.76973051,3533.5,3532.1,0.17135108]
[1718934800696,0.76973055,3533.5,3532.1,0.17135108]
[1718934803007,0.76973055,3533.5,3532.1,6.32597021]
[1718934803206,0.09583801,3533.4,3532.2,3.0]
[1718934803369,0.40272107,3533.4,3532.2,3.0]
[1718934806399,2.2991,3533.3,3532.2,3.0]
[1718934806605,2.39495601,3533.3,3532.2,3.0]
[1718934806904,0.49029323,3533.2,3532.2,3.0]
[1718934807408,0.09582721,3533.1,3532.2,3.0]
[1718934807577,2.2991,3533.0,3532.2,3.0]
[1718934807769,0.72978595,3532.9,3532.2,3.0]
[1718934807969,0.82595179,3532.9,3532.2,3.0]
[1718934809913,0.82603847,3532.9,3532.2,3.0]
[1718934812221,0.3155082,3532.8,3532.2,3.0]
[1718934812527,0.4114291,3532.8,3532.2,3.0]
[1718934812824,0.34404017,3532.7,3532.2,3.0]
[1718934813303,0.0959209,3532.6,3531.8,3.0]
[1718934813819,0.34404017,3532.7,3531.8,3.0]
[1718934815118,0.31551306,3532.6,3531.8,3.0]
[1718934816925,0.49038059,3532.9,3531.9,0.7583]
[1718934817234,0.31540444,3532.8,3531.9,0.7583]
[1718934817406,0.49038059,3533.2,3531.9,0.7583]
[1718934817602,0.3153048,3533.1,3532.0,1.0904211]
[1718934819436,0.3153048,3533.0,3532.0,1.0904211]
[1718934819741,0.3153048,3532.9,3532.0,1.0904211]
[1718934819906,0.3153048,3532.8,3532.0,1.0904211]
[1718934820105,0.3153048,3532.7,3532.0,1.0904211]
[1718934820443,0.98061735,3533.2,3532.1,0.5840013]
[1718934820444,1.30858936,3533.2,3532.1,0.5840013]
[1718934820620,0.09632428,3532.6,3532.1,0.5840013]
[1718934820822,1.30858936,3533.2,3532.1,0.5840013]
[1718934821022,0.09633509,3532.5,3532.1,0.5840013]
[1718934821214,1.30858936,3533.2,3532.1,0.5840013]
[1718934821413,0.09633509,3532.4,3532.0,6.15461913]
[1718934821718,0.6765247,3533.1,3532.1,3.0]
[1718934821719,0.36076894,3533.1,3532.1,3.0]
[1718934821921,0.31585906,3533.0,3532.1,3.0]
[1718934822120,0.16572456,3532.9,3532.1,3.0]
[1718934822338,0.31585906,3532.8,3532.1,3.0]
[1718934822541,0.41226977,3532.8,3532.1,3.0]
[1718934822742,0.31585906,3532.7,3532.1,3.0]
[1718934823321,0.41226977,3532.6,3532.1,3.0]
[1718934823517,0.31585906,3532.5,3532.1,3.0]
[1718934824240,0.41226977,3532.4,3532.1,3.0]
[1718934824542,0.31585906,3532.3,3532.1,3.0]
[1718934825053,0.09628827,3532.2,3532.1,3.0]
[1718934825214,0.68327206,3532.2,3532.1,3.0]
[1718934825415,0.68327206,3532.2,3532.0,6.15461913]
[1718934825615,0.31585906,3532.1,3531.3,20.5983]
[1718934825844,0.31585906,3532.1,3531.2,7.28933413]
[1718934826050,2.2991,3532.0,3531.2,6.15461913]
[1718934826218,4.09842092,3531.9,3531.2,6.15461913]
[1718934826405,0.80627005,3531.8,3531.2,6.15461913]
[1718934826616,0.31585906,3531.7,3531.2,6.15461913]
[1718934826818,0.09574077,3531.6,3531.2,6.15461913]
[1718934827047,0.31585906,3531.5,3531.2,6.15461913]
[1718934827414,0.41159983,3531.4,3531.2,6.15461913]
[1718934827613,0.31585906,3531.3,3531.2,6.15461913]
[1718934827836,0.31585906,3531.3,3530.7,1.134999]
[1718934827837,0.41125393,3531.3,3530.7,1.134999]
[1718934828043,0.31585906,3531.2,3530.7,1.134999]
[1718934828262,0.31585906,3531.1,3530.7,1.134999]
[1718934828567,0.31585906,3531.0,3530.5,3.0]
[1718934828714,0.31585906,3530.9,3530.5,3.0]
[1718934828914,0.31585906,3530.8,3530.6,1.13504]
[1718934829143,0.49057758,3531.2,3530.5,3.0]
[1718934829144,0.31585906,3530.7,3530.5,3.0]
[1718934829345,0.27896776,3531.1,3530.5,3.0]
[1718934829518,0.31589722,3531.0,3530.5,4.135087]
[1718934831472,0.31589722,3530.9,3530.5,4.135087]
[1718934831678,0.49057758,3531.2,3530.5,4.135087]
[1718934831864,0.31570346,3531.1,3530.5,4.135087]
[1718934834704,0.49060022,3531.2,3530.5,4.135087]
[1718934834852,0.3253953,3531.1,3530.5,4.135087]
[1718934836167,0.49060022,3531.2,3530.5,4.135087]
[1718934837188,0.35427829,3531.5,3530.5,4.135087]
[1718934837397,0.32534431,3531.4,3530.5,4.135087]
[1718934838286,0.32534431,3531.4,3530.5,5.23988761]
[1718934840368,0.32534431,3531.4,3530.5,4.135087]
[1718934843914,0.35427829,3531.5,3530.5,4.135087]
[1718934844111,0.49055427,3531.7,3530.6,0.7583]
[1718934844411,0.49050697,3532.1,3530.8,0.7583]
[1718934844622,0.09511376,3532.0,3530.8,6.91291913]
[1718934844793,0.09511376,3532.0,3530.9,3.74629191]
[1718934844991,0.49050697,3532.1,3530.9,3.74629191]
[1718934847037,0.49047578,3532.1,3530.9,3.74629191]
[1718934847404,2.2991,3532.2,3530.9,3.74629191]
[1718934847610,0.81638255,3532.1,3531.0,1.1209211]
[1718934847808,0.49047495,3532.1,3531.0,1.1209211]
[1718934848127,2.2991,3532.2,3531.0,1.1209211]
[1718934848317,0.81636837,3532.1,3531.0,1.1209211]
[1718934848517,0.49047141,3532.1,3531.1,1.17801321]
[1718934849029,0.49047141,3532.1,3530.9,3.74629191]
[1718934849232,0.42123712,3532.0,3530.9,3.0]
[1718934849427,0.32600803,3531.9,3530.9,3.0]
[1718934849630,2.2991,3531.8,3530.9,3.0]
[1718934849824,0.32600803,3531.7,3530.9,3.0]
[1718934850133,0.2625108,3531.6,3530.9,3.0]
[1718934850713,0.09531559,3531.5,3530.9,3.0]
[1718934851113,0.32625826,3531.4,3530.9,3.0]
[1718934851430,0.09542372,3531.3,3530.9,3.0]
[1718934852052,0.2625108,3531.6,3530.5,4.893387]
[1718934852201,0.63104962,3531.5,3530.5,4.893387]
[1718934852569,0.3258307,3531.4,3530.5,4.893387]
[1718934852758,2.2991,3531.3,3530.5,4.135087]
[1718934852909,0.49057843,3531.2,3530.5,4.135087]
[1718934853419,2.59211496,3531.3,3530.5,4.135087]
[1718934853632,0.81611348,3531.2,3530.5,4.135087]
[1718934853972,0.49058278,3531.2,3530.5,4.135087]
[1718934856735,0.49056968,3531.2,3530.5,4.135087]
[1718934857328,0.49056941,3531.2,3530.5,4.135087]
[1718934857508,0.76953635,3531.2,3530.5,4.135087]
[1718934857844,0.76953635,3531.2,3530.5,3.0]
[1718934858044,0.32558779,3531.1,3530.5,3.0]
[1718934862217,0.32558779,3531.1,3530.1,1.135204]